bitfinex-derivatives/quotes_SOLF0:USTF0_20250328
["timestamp","ask_amount","ask_price","bid_price","bid_amount"]
[1743163991701,7.5982,131.66,131.64,7.65325989]
[1743163991899,7.5982,131.66,131.64,0.05425989]
[1743163992399,7.5982,131.66,131.64,7.65335989]
[1743163993395,7.5987,131.65,131.64,0.05425989]
[1743163994799,7.5985,131.66,131.64,7.65345989]
[1743163995102,7.5985,131.66,131.64,0.05425989]
[1743163996096,7.5985,131.66,131.64,7.65335989]
[1743163997301,0.05245708,131.67,131.64,7.65335989]
[1743163998102,7.5985,131.66,131.64,7.65335989]
[1743163998294,0.05245708,131.67,131.64,0.05425989]
[1743163998797,7.5984,131.66,131.64,0.05425989]
[1743163999003,7.5984,131.66,131.64,7.65325989]
[1743164002303,7.5984,131.66,131.64,0.05425989]
[1743164002506,7.5987,131.65,131.64,0.05425989]
[1743164003205,7.6008,131.62,131.58,2.025]
[1743164003606,7.6008,131.62,131.59,7.6021]
[1743164004107,17.37858221,131.63,131.6,7.6016]
[1743164004302,0.05454769,131.62,131.6,9.77838221]
[1743164004805,0.05454769,131.62,131.61,7.601]
[1743164007409,0.05454769,131.62,131.6,7.6016]
[1743164007802,0.05454769,131.62,131.59,0.04785811]
[1743164008403,7.65534769,131.62,131.59,7.64975811]
[1743164008599,7.65534769,131.62,131.59,0.04785811]
[1743164008916,0.05454769,131.62,131.59,0.04785811]
[1743164009505,0.05454769,131.62,131.61,7.601]
[1743164012615,7.65514769,131.62,131.6,7.6013]
[1743164012815,7.65514769,131.62,131.59,0.04785811]
[1743164013211,7.65514769,131.62,131.59,7.64965811]
[1743164013611,9.77838221,131.6,131.59,0.04785811]
[1743164015822,17.37998221,131.6,131.59,0.04785811]
[1743164016223,0.05454769,131.62,131.59,0.04785811]
[1743164016417,0.05454769,131.62,131.61,7.601]
[1743164024623,7.65524769,131.62,131.59,0.04785811]
[1743164024924,9.77838221,131.61,131.59,0.04785811]
[1743164025121,9.77838221,131.61,131.54,31.46]
[1743164025122,13.83798221,131.61,131.54,31.46]
[1743164025326,9.77838221,131.59,131.53,260.43838221]
[1743164026028,7.6029,131.58,131.53,260.43838221]
[1743164026330,0.0520725,131.57,131.55,0.05502843]
[1743164028223,0.0520725,131.57,131.55,7.65932843]
[1743164028417,0.0520725,131.57,131.55,9.83341064]
[1743164028625,41.23838221,131.63,131.58,7.6023]
[1743164028820,7.6007,131.62,131.57,9.77838221]
[1743164029331,7.6007,131.62,131.58,7.6024]
[1743164029524,9.77838221,131.63,131.57,9.77838221]
[1743164029918,0.05242008,131.61,131.59,0.05495111]
[1743164030328,7.65372008,131.61,131.59,0.05495111]
[1743164030827,0.05242008,131.61,131.59,0.05495111]
[1743164031030,9.83080229,131.61,131.59,0.05495111]
[1743164031825,7.6016,131.6,131.59,0.05495111]
[1743164037438,17.43220229,131.61,131.59,0.05495111]
[1743164037633,7.65382008,131.61,131.59,0.05495111]
[1743164038338,7.6016,131.6,131.59,0.05495111]
[1743164039533,7.65372008,131.61,131.59,0.05495111]
[1743164039732,0.05242008,131.61,131.59,0.05495111]
[1743164039939,7.6016,131.6,131.59,0.05495111]
[1743164047646,7.6016,131.6,131.57,7.6032]
[1743164047647,7.6025,131.59,131.54,9.77838221]
[1743164048145,7.6025,131.59,131.56,7.6037]
[1743164048844,7.6568049,131.59,131.56,7.65337055]
[1743164049143,7.6028,131.58,131.56,0.04967055]
[1743164049941,17.43518711,131.59,131.56,7.65357055]
[1743164051153,7.6029,131.58,131.56,7.65357055]
[1743164051848,17.43508711,131.59,131.56,7.65357055]
[1743164052049,9.77838221,131.57,131.56,0.04967055]
[1743164052251,41.19838221,131.57,131.49,9.77838221]
[1743164052451,9.77838221,131.54,131.49,9.77838221]
[1743164052652,9.77838221,131.54,131.51,7.6066]
[1743164052953,17.38358221,131.54,131.51,7.6066]
[1743164053353,17.43577033,131.54,131.51,7.65501627]
[1743164053946,9.83057033,131.54,131.52,7.6062]
[1743164055554,9.83057033,131.54,131.51,19.76491627]
[1743164056364,17.43597033,131.54,131.51,19.76491627]
[1743164056653,9.83057033,131.54,131.51,19.76491627]
[1743164056842,9.83057033,131.54,131.52,7.6061]
[1743164057553,17.43577033,131.54,131.52,7.6061]
[1743164058856,17.43577033,131.54,131.51,19.76491627]
[1743164059153,17.43577033,131.54,131.51,12.15841627]
[1743164059346,17.43577033,131.54,131.51,19.76501627]
[1743164060054,9.83057033,131.54,131.51,19.76501627]
[1743164060452,17.43617033,131.54,131.51,19.76501627]
[1743164060651,9.83057033,131.54,131.51,19.76501627]
[1743164060852,9.83057033,131.54,131.51,12.15841627]
[1743164061055,7.6059,131.53,131.51,12.15841627]
[1743164061449,7.6059,131.53,131.51,19.76501627]
[1743164062653,7.6062,131.52,131.51,12.15841627]
[1743164063158,39.006,131.53,131.51,12.15841627]
[1743164063355,39.006,131.53,131.51,19.76511627]
[1743164063553,41.23057033,131.54,131.51,12.15841627]
[1743164063858,41.23057033,131.54,131.52,7.6059]
[1743164064256,48.83577033,131.54,131.52,7.6059]
[1743164064458,48.83577033,131.54,131.51,19.76491627]
[1743164065357,7.6057,131.53,131.51,12.15841627]
[1743164065657,41.23057033,131.54,131.51,12.15841627]
[1743164065968,7.6062,131.52,131.51,0.04841627]
[1743164066260,17.38458221,131.52,131.51,0.04841627]
[1743164073869,9.77838221,131.49,131.45,1.9913]
[1743164074876,0.05209258,131.48,131.46,0.0241289]
[1743164076770,0.05209258,131.48,131.47,7.6091]
[1743164077166,9.83047479,131.48,131.46,0.0241289]
[1743164078372,9.83047479,131.48,131.47,7.6091]
[1743164078578,0.05209258,131.48,131.47,7.6091]
[1743164080684,0.05209258,131.48,131.46,7.6336289]
[1743164081377,0.05209258,131.48,131.47,7.6091]
[1743164083070,17.43917479,131.48,131.46,7.6335289]
[1743164085979,9.77838221,131.47,131.46,7.6335289]
[1743164089476,7.66069258,131.48,131.47,7.6091]
[1743164089477,9.83047479,131.48,131.47,7.6091]
[1743164089678,0.05209258,131.48,131.47,7.6091]
[1743164091681,9.83047479,131.48,131.46,7.6335289]
[1743164092178,9.83047479,131.48,131.46,20.3935289]
[1743164092578,17.43927479,131.48,131.46,20.3938289]
[1743164093184,9.83047479,131.48,131.46,20.3938289]
[1743164093982,9.77838221,131.47,131.46,20.3938289]
[1743164094885,9.77838221,131.47,131.46,12.7841289]
[1743164096888,9.77838221,131.47,131.46,20.3938289]
[1743164100380,9.83047479,131.48,131.46,20.3938289]
[1743164101790,9.77838221,131.52,131.47,9.77838221]
[1743164101989,9.77838221,131.51,131.47,9.77838221]
[1743164102388,9.77838221,131.51,131.49,7.6074]
[1743164102888,9.82685014,131.51,131.5,7.6074]
[1743164104686,9.82685014,131.51,131.49,0.05720313]
[1743164104883,17.38578221,131.5,131.49,0.05720313]
[1743164105986,7.609,131.48,131.46,12.76]
[1743164106183,9.77838221,131.47,131.46,12.76]
[1743164107484,17.38748221,131.47,131.46,12.76]
[1743164109091,9.77838221,131.47,131.46,12.76]
[1743164109887,17.38748221,131.47,131.46,12.76]
[1743164113100,9.82684786,131.48,131.46,12.76]
[1743164113690,7.6091,131.47,131.46,12.76]
[1743164113991,17.38748221,131.47,131.46,12.76]
[1743164114384,9.77838221,131.47,131.43,7.6114]
[1743164114889,7.61,131.46,131.42,13.96578221]
[1743164115093,9.77838221,131.46,131.44,7.6105]
[1743164115295,0.05773578,131.45,131.44,7.6105]
[1743164115480,0.05773578,131.45,131.43,7.6112]
[1743164119087,0.05773578,131.45,131.44,7.6109]
[1743164120584,0.05773578,131.45,131.44,17.38928221]
[1743164122499,0.05773578,131.45,131.44,7.6109]
[1743164130008,41.09611799,131.45,131.38,9.77838221]
[1743164130197,9.77838221,131.43,131.38,13.84368221]
[1743164130401,9.77838221,131.43,131.41,7.6123]
[1743164130603,0.05500788,131.42,131.41,7.6123]
[1743164135604,9.77838221,131.47,131.46,7.6097]
[1743164135812,41.03838221,131.48,131.43,9.77838221]
[1743164136212,41.03838221,131.48,131.47,7.6091]
[1743164136513,9.77838221,131.49,131.45,9.77838221]
[1743164136699,9.83094662,131.49,131.48,7.6086]
[1743164136904,9.83094662,131.49,131.46,0.04785561]
[1743164137306,9.77838221,131.48,131.46,0.04785561]
[1743164138112,9.77838221,131.48,131.47,7.6091]
[1743164138414,9.83094662,131.49,131.46,0.04785561]
[1743164138605,9.83094662,131.49,131.47,7.6088]
[1743164142312,17.43904662,131.49,131.46,7.65715561]
[1743164142719,9.83094662,131.49,131.46,0.04785561]
[1743164143018,9.83094662,131.49,131.47,7.6091]
[1743164143212,9.83094662,131.49,131.46,0.04785561]
[1743164143708,17.43914662,131.49,131.46,7.65725561]
[1743164143909,9.83094662,131.49,131.46,7.65725561]
[1743164144511,9.77838221,131.48,131.46,0.04785561]
[1743164144706,9.77838221,131.47,131.46,0.04785561]
[1743164145211,9.77838221,131.47,131.46,7.65755561]
[1743164145411,9.77838221,131.48,131.46,0.04785561]
[1743164145611,9.83094662,131.49,131.46,0.04785561]
[1743164145913,9.83094662,131.49,131.47,7.6088]
[1743164148619,17.43894662,131.49,131.46,7.65725561]
[1743164148819,9.77838221,131.48,131.46,7.65725561]
[1743164150921,9.77838221,131.48,131.47,7.6091]
[1743164151121,9.83094662,131.49,131.47,7.6091]
[1743164151617,9.83094662,131.49,131.46,0.04785561]
[1743164151618,9.77838221,131.48,131.46,0.04785561]
[1743164151919,40.99838221,131.47,131.39,9.77838221]
[1743164152221,9.77838221,131.43,131.39,9.77838221]
[1743164152521,9.77838221,131.43,131.38,40.99838221]
[1743164152714,9.77838221,131.42,131.39,7.6135]
[1743164152910,9.77838221,131.41,131.37,2.1217]
[1743164153120,9.77838221,131.4,131.39,0.02617062]
[1743164153714,9.77838221,131.4,131.37,12.19]
[1743164153913,9.77838221,131.38,131.32,83.74085749]
[1743164154216,17.39568221,131.33,131.32,83.74085749]
[1743164155912,9.82830082,131.34,131.32,83.74085749]
[1743164156223,0.04991861,131.34,131.32,83.74085749]
[1743164157608,9.82830082,131.34,131.32,83.74085749]
[1743164157813,17.39568221,131.33,131.32,83.74085749]
[1743164158220,9.77838221,131.33,131.28,250.96]
[1743164158523,7.6185,131.31,131.27,40.99838221]
[1743164159121,0.05209083,131.3,131.27,40.99838221]
[1743164160025,0.05209083,131.3,131.27,17.39898221]
[1743164161017,0.05209083,131.3,131.27,7.6206]
[1743164161222,0.05209083,131.3,131.26,33.3105]
[1743164162313,0.05209083,131.3,131.26,40.9314]
[1743164162617,0.05209083,131.3,131.26,33.3105]
[1743164163122,0.05209083,131.3,131.26,2.0905]
[1743164163325,7.67119083,131.3,131.26,2.0905]
[1743164163625,0.05209083,131.3,131.26,2.0905]
[1743164164517,0.05209083,131.3,131.26,9.7114]
[1743164164923,0.05209083,131.3,131.26,2.0905]
[1743164165227,0.05209083,131.3,131.27,7.6202]
[1743164165525,0.05209083,131.3,131.26,9.7116]
[1743164166024,0.05209083,131.3,131.26,2.0905]
[1743164167220,0.05209083,131.3,131.28,7.6199]
[1743164167716,0.05209083,131.3,131.26,2.0905]
[1743164167914,0.05209083,131.3,131.28,7.62]
[1743164168523,0.05209083,131.3,131.27,7.6206]
[1743164168725,0.05209083,131.3,131.26,2.0905]
[1743164169719,0.05209083,131.3,131.29,7.6196]
[1743164174824,9.083e-05,131.3,131.29,38.8196]
[1743164175325,9.083e-05,131.3,131.29,7.6196]
[1743164175530,9.083e-05,131.3,131.29,38.8196]
[1743164176432,9.083e-05,131.3,131.28,7.6733152]
[1743164177227,9.083e-05,131.3,131.28,0.0535152]
[1743164177728,9.083e-05,131.3,131.28,7.6734152]
[1743164179229,9.083e-05,131.3,131.29,7.6196]
[1743164183236,9.083e-05,131.3,131.29,54.14666541]
[1743164184235,9.083e-05,131.3,131.29,55.5456512]
[1743164184829,9.083e-05,131.3,131.29,38.7996]
[1743164191741,9.083e-05,131.3,131.29,40.19859285]
[1743164192041,9.083e-05,131.3,131.29,38.7996]
[1743164192243,9.083e-05,131.3,131.29,63.16565325]
[1743164192541,9.083e-05,131.3,131.29,55.54565325]
[1743164192933,9.083e-05,131.3,131.29,50.01512694]
[1743164193236,9.083e-05,131.3,131.29,40.19858784]
[1743164193433,9.083e-05,131.3,131.29,50.01512694]
[1743164194834,9.083e-05,131.3,131.29,55.53582646]
[1743164195333,9.083e-05,131.3,131.29,55.53573091]
[1743164198835,15.33723862,131.38,131.29,55.53573091]
[1743164199140,15.33723862,131.4,131.32,15.33723862]
[1743164199342,15.33723862,131.4,131.33,31.14]
[1743164199539,15.33723862,131.42,131.34,15.33723862]
[1743164199730,1.9884,131.43,131.34,15.33723862]
[1743164199933,59.03756411,131.44,131.36,15.33723862]
[1743164200138,9.802e-05,131.4,131.37,31.19360603]
[1743164200847,9.802e-05,131.4,131.39,7.6138]
[1743164206255,9.802e-05,131.4,131.37,0.05360603]
[1743164206737,9.802e-05,131.4,131.38,7.6143]
[1743164207546,7.61329802,131.4,131.37,0.05360603]
[1743164207949,15.33733664,131.4,131.37,0.05360603]
[1743164208150,7.6144,131.38,131.37,0.05360603]
[1743164208550,7.6155,131.37,131.33,7.6172]
[1743164209752,0.04955607,131.36,131.34,0.04949039]
[1743164209954,0.04955607,131.36,131.34,7.66619039]
[1743164210856,0.04955607,131.36,131.34,0.04949039]
[1743164211049,7.66515607,131.36,131.34,0.04949039]
[1743164211255,0.04955607,131.36,131.34,0.04949039]
[1743164211649,7.66535607,131.36,131.34,0.04949039]
[1743164212347,7.6161,131.35,131.34,0.04949039]
[1743164212653,15.38679469,131.36,131.3,7.6185]
[1743164212854,15.38679469,131.36,131.28,1.9756]
[1743164213056,15.33723862,131.36,131.28,33.0756]
[1743164213254,15.33723862,131.36,131.3,7.6186]
[1743164213453,7.6164,131.35,131.3,7.6186]
[1743164213653,0.05269294,131.34,131.3,7.6186]
[1743164214166,0.05269294,131.34,131.31,7.6183]
[1743164216161,0.05269294,131.34,131.32,7.6177]
[1743164217258,15.38993156,131.34,131.27,266.47723862]
[1743164217456,15.38993156,131.34,131.27,282.24]
[1743164217650,22.95533862,131.32,131.29,7.6192]
[1743164218068,25.03613862,131.32,131.29,7.6192]
[1743164218261,17.41803862,131.32,131.3,7.619]
[1743164218652,17.4762274,131.32,131.3,7.619]
[1743164219060,25.0942274,131.32,131.29,7.6193]
[1743164219359,25.0942274,131.32,131.27,251.14]
[1743164219360,17.4762274,131.32,131.24,2.1466]
[1743164219560,17.41803862,131.32,131.24,2.1466]
[1743164219756,0.05633858,131.29,131.28,7.6196]
[1743164219958,0.05633858,131.29,131.23,46.43723862]
[1743164220151,0.05633858,131.29,131.23,31.1]
[1743164220865,0.05633858,131.29,131.23,46.43723862]
[1743164221059,0.05633858,131.29,131.28,7.6202]
[1743164221961,0.05633858,131.29,131.27,7.6204]
[1743164222159,0.05633858,131.29,131.23,46.43723862]
[1743164222460,0.05633858,131.29,131.22,1.9937]
[1743164222660,0.05633858,131.29,131.22,33.0937]
[1743164222862,31.15633858,131.29,131.22,33.0937]
[1743164223052,38.77623858,131.29,131.25,7.6216]
[1743164223857,7.6205,131.28,131.24,7.622]
[1743164224358,0.05576215,131.27,131.25,7.6217]
[1743164224865,0.05576215,131.27,131.26,7.6213]
[1743164227664,0.05576215,131.27,131.23,15.33723862]
[1743164227665,0.05576215,131.27,131.25,7.6216]
[1743164228268,0.05576215,131.27,131.24,7.622]
[1743164229157,0.05576215,131.27,131.25,7.6217]
[1743164229770,0.05576215,131.27,131.24,7.6222]
[1743164230165,0.05576215,131.27,131.21,266.53723862]
[1743164230367,0.05576215,131.27,131.26,7.6213]
[1743164232573,0.05576215,131.27,131.21,266.53723862]
[1743164232574,0.05576215,131.27,131.25,7.6216]
[1743164232972,0.05576215,131.27,131.21,266.53723862]
[1743164233361,0.05576215,131.27,131.21,251.2]
[1743164233568,46.47300077,131.27,131.22,7.6233]
[1743164233775,31.13576215,131.27,131.21,251.2]
[1743164234167,31.13576215,131.27,131.21,266.53723862]
[1743164234465,31.13576215,131.27,131.21,297.61723862]
[1743164234873,31.13576215,131.27,131.26,7.6213]
[1743164235974,0.05576215,131.27,131.26,7.6213]
[1743164236276,0.05576215,131.27,131.21,282.28]
[1743164236870,0.05576215,131.27,131.25,7.6216]
[1743164237375,0.05576215,131.27,131.24,7.6221]
[1743164237568,0.05576215,131.27,131.21,282.28]
[1743164238062,0.05576215,131.27,131.25,7.6216]
[1743164238804,0.05576215,131.27,131.24,7.6224]
[1743164239506,7.67646215,131.27,131.24,7.6224]
[1743164241215,0.05576215,131.27,131.25,7.6218]
[1743164242492,7.67656215,131.27,131.25,7.6218]
[1743164242800,15.39300077,131.27,131.21,251.2]
[1743164242995,31.06,131.26,131.19,4.062]
[1743164243198,38.6817,131.26,131.22,7.6234]
[1743164243392,0.05222318,131.24,131.22,7.6234]
[1743164244005,0.05222318,131.24,131.23,7.6231]
[1743164246705,15.3894618,131.24,131.13,418.0]
[1743164246891,15.33723862,131.21,131.14,5.69140116]
[1743164247187,0.05769281,131.2,131.14,11.919]
[1743164247385,0.05769281,131.2,131.15,15.33723862]
[1743164247579,0.05769281,131.2,131.17,15.33723862]
[1743164247782,46.49723862,131.25,131.17,15.33723862]
[1743164247973,54.11953862,131.25,131.17,15.33723862]
[1743164248492,54.11953862,131.25,131.18,7.6258]
[1743164248697,46.49723862,131.25,131.16,31.82]
[1743164248989,0.05816135,131.23,131.2,0.05476614]
[1743164249992,0.05816135,131.23,131.2,12.46476614]
[1743164250295,7.68126135,131.23,131.2,12.46476614]
[1743164250488,0.05816135,131.23,131.2,12.46476614]
[1743164252696,0.05816135,131.23,131.2,44.40476614]
[1743164252885,0.05816135,131.23,131.21,2.1037]
[1743164253288,0.05816135,131.23,131.22,7.6236]
[1743164254592,0.05816135,131.23,131.21,9.7277]
[1743164254998,0.05816135,131.23,131.22,7.6236]
[1743164255795,17.36363862,131.31,131.26,7.6212]
[1743164255995,15.33723862,131.31,131.23,15.33723862]
[1743164256296,15.33723862,131.31,131.28,7.6201]
[1743164256497,89.34058708,131.33,131.28,7.6201]
[1743164256887,0.04932857,131.32,131.29,0.04907486]
[1743164257499,0.04932857,131.32,131.29,7.66847486]
[1743164258600,7.66722857,131.32,131.29,0.04907486]
[1743164259102,0.04932857,131.32,131.29,0.04907486]
[1743164259898,0.04932857,131.32,131.29,7.66857486]
[1743164260497,7.66742857,131.32,131.29,0.04907486]
[1743164260703,0.04932857,131.32,131.29,0.04907486]
[1743164261099,7.619,131.31,131.29,0.04907486]
[1743164261399,0.04932857,131.32,131.29,0.04907486]
[1743164261599,7.66742857,131.32,131.29,0.04907486]
[1743164262602,0.04932857,131.32,131.29,7.66847486]
[1743164264203,0.04932857,131.32,131.29,0.04907486]
[1743164264917,0.04932857,131.32,131.3,7.6186]
[1743164265519,0.04932857,131.32,131.29,0.04907486]
[1743164266007,0.04932857,131.32,131.3,7.6187]
[1743164266392,0.04932857,131.32,131.29,0.04907486]
[1743164266598,0.04932857,131.32,131.31,7.6184]
[1743164268405,54.45193862,131.38,131.29,15.38631348]
[1743164268705,22.95193862,131.38,131.29,77.33723862]
[1743164268902,22.95193862,131.38,131.34,7.6162]
[1743164269502,7.67351521,131.37,131.35,0.05541101]
[1743164270698,7.6155,131.36,131.35,0.05541101]
[1743164271605,22.95273862,131.36,131.35,0.05541101]
[1743164272693,7.617,131.34,131.3,7.6188]
[1743164272898,22.95423862,131.34,131.28,31.34]
[1743164273097,15.33723862,131.36,131.32,7.6174]
[1743164273297,22.95303862,131.36,131.32,7.6174]
[1743164273498,22.95303862,131.36,131.33,7.617]
[1743164273808,15.38690824,131.36,131.33,7.6746496]
[1743164274306,15.38690824,131.36,131.34,7.6166]
[1743164274502,0.04966962,131.36,131.33,0.0576496]
[1743164275299,0.04966962,131.36,131.35,7.6161]
[1743164276000,0.04966962,131.36,131.33,0.0576496]
[1743164276601,0.04966962,131.36,131.34,7.6167]
[1743164277002,0.04966962,131.36,131.33,0.0576496]
[1743164277204,0.04966962,131.36,131.34,7.6162]
[1743164278510,0.04966962,131.36,131.35,7.6161]
[1743164280009,15.33723862,131.4,131.33,0.0576496]
[1743164280205,15.33723862,131.4,131.33,4.1771496]
[1743164281011,22.95053862,131.4,131.33,4.1771496]
[1743164281207,0.05102302,131.38,131.33,4.1771496]
[1743164281517,0.05102302,131.38,131.35,7.6159]
[1743164282319,0.05102302,131.38,131.36,7.6155]
[1743164282808,0.05102302,131.38,131.37,7.6149]
[1743164284602,0.05102302,131.38,131.36,7.67192604]
[1743164284801,0.05102302,131.38,131.36,0.05662604]
[1743164286209,0.05102302,131.38,131.36,7.67202604]
[1743164286619,0.05102302,131.38,131.36,0.05662604]
[1743164287215,0.05102302,131.38,131.37,7.6149]
[1743164288117,0.05102302,131.38,131.36,0.05662604]
[1743164289010,9.81506077,131.37,131.36,0.05662604]
[1743164293719,0.05102302,131.38,131.36,0.05662604]
[1743164294215,0.05102302,131.38,131.36,7.67182604]
[1743164294419,0.05102302,131.38,131.36,0.05662604]
[1743164294619,0.05102302,131.38,131.37,7.6149]
[1743164297713,0.05102302,131.38,131.36,0.05662604]
[1743164298813,9.86608379,131.38,131.36,0.05662604]
[1743164301920,17.48048379,131.38,131.36,0.05662604]
[1743164302519,9.86608379,131.38,131.36,0.05662604]
[1743164303124,17.48058379,131.38,131.36,0.05662604]
[1743164303917,7.6149,131.37,131.36,0.05662604]
[1743164304117,17.42996077,131.37,131.36,0.05662604]
[1743164305423,9.81506077,131.37,131.3,289.8188]
[1743164305623,9.81506077,131.34,131.3,282.2]
[1743164306014,9.81506077,131.34,131.3,289.8187]
[1743164306223,9.81506077,131.34,131.3,282.2]
[1743164306423,7.6737035,131.33,131.31,0.05251493]
[1743164306726,0.0561035,131.33,131.31,0.05251493]
[1743164310233,0.0561035,131.33,131.31,7.67091493]
[1743164310718,0.0561035,131.33,131.31,0.05251493]
[1743164310924,0.0561035,131.33,131.32,17.43286077]
[1743164311225,9.81506077,131.37,131.32,9.81506077]
[1743164311425,9.81506077,131.39,131.34,9.81506077]
[1743164311835,9.81506077,131.39,131.36,7.6152]
[1743164312317,9.86367474,131.39,131.36,0.05171571]
[1743164313028,9.81506077,131.37,131.36,0.05171571]
[1743164314427,17.42996077,131.37,131.36,0.05171571]
[1743164314831,40.85506077,131.37,131.3,282.2]
[1743164315136,9.81506077,131.33,131.28,11.85956077]
[1743164315833,9.81506077,131.33,131.28,9.81506077]
[1743164316039,0.04848524,131.32,131.29,0.05856203]
[1743164316433,0.04848524,131.32,131.3,7.619]
[1743164317239,0.04848524,131.32,131.31,7.6184]
[1743164329940,8.524e-05,131.32,131.31,7.6184]
[1743164334352,8.524e-05,131.32,131.31,11.7955]
[1743164337354,8.524e-05,131.32,131.31,7.6184]
[1743164347160,8.524e-05,131.32,131.31,17.4361035]
[1743164348562,8.524e-05,131.32,131.31,79.4361035]
[1743164350760,8.524e-05,131.32,131.31,17.4361035]
[1743164358662,9.8177035,131.4,131.37,7.6149]
[1743164359773,0.04841236,131.4,131.37,7.67250313]
[1743164359960,0.04841236,131.4,131.37,9.87530663]
[1743164360161,0.04841236,131.4,131.39,9.8177035]
[1743164360367,0.04841236,131.4,131.39,17.4315035]
[1743164361676,0.04841236,131.4,131.37,7.67220313]
[1743164361677,9.86611586,131.4,131.37,7.67220313]
[1743164361858,9.86611586,131.4,131.37,0.05760313]
[1743164362058,0.04841236,131.4,131.37,0.05760313]
[1743164362971,0.04841236,131.4,131.37,7.67220313]
[1743164363173,9.86611586,131.4,131.37,0.05760313]
[1743164364771,17.47941586,131.4,131.37,0.05760313]
[1743164364962,9.86611586,131.4,131.37,0.05760313]
[1743164365168,9.8177035,131.39,131.37,0.05760313]
[1743164365369,9.8177035,131.38,131.37,0.05760313]
[1743164365765,17.4321035,131.38,131.37,0.05760313]
[1743164366670,7.6152,131.37,131.33,9.8177035]
[1743164367072,9.8177035,131.38,131.33,9.8177035]
[1743164367272,17.4323035,131.38,131.33,9.8177035]
[1743164367469,17.4323035,131.38,131.34,7.6167]
[1743164367870,17.48990674,131.37,131.35,0.04908835]
[1743164369672,0.05730324,131.37,131.35,0.04908835]
[1743164370076,0.05730324,131.37,131.35,7.66508835]
[1743164370576,0.05730324,131.37,131.35,0.04908835]
[1743164371783,0.05730324,131.37,131.36,7.6155]
[1743164373275,0.05730324,131.37,131.35,0.04908835]
[1743164374282,0.05730324,131.37,131.35,7.66468835]
[1743164374780,0.05730324,131.37,131.35,0.04908835]
[1743164375383,9.8177035,131.36,131.35,0.04908835]
[1743164377073,17.4332035,131.36,131.35,0.04908835]
[1743164377372,9.8177035,131.36,131.29,31.0]
[1743164377576,9.8177035,131.33,131.3,7.6187]
[1743164377974,9.8177035,131.33,131.28,261.0177035]
[1743164378176,9.8177035,131.31,131.28,251.2]
[1743164378373,9.8177035,131.29,131.24,94.50453269]
[1743164378580,9.8177035,131.29,131.28,0.04910646]
[1743164378775,9.8177035,131.29,131.24,9.8177035]
[1743164378977,0.05002823,131.28,131.27,0.04910646]
[1743164380673,0.05002823,131.28,131.24,7.6223]
[1743164380978,9.8177035,131.26,131.23,16.80133271]
[1743164381183,9.86773173,131.28,131.23,16.80133271]
[1743164381680,9.86773173,131.28,131.27,7.6207]
[1743164382083,9.86773173,131.28,131.22,260.9777035]
[1743164382979,9.86773173,131.28,131.25,7.6215]
[1743164383179,9.86773173,131.28,131.22,260.9777035]
[1743164383579,9.86773173,131.28,131.26,7.621]
[1743164383777,9.86773173,131.28,131.22,260.9777035]
[1743164384279,9.86773173,131.28,131.24,9.8177035]
[1743164384482,0.05002823,131.28,131.24,9.8177035]
[1743164384682,0.05002823,131.28,131.27,7.6207]
[1743164387692,40.8177035,131.33,131.32,7.6178]
[1743164387987,9.8177035,131.34,131.29,9.8177035]
[1743164388191,9.8177035,131.36,131.29,40.8177035]
[1743164388691,31.0,131.37,131.31,9.8177035]
[1743164388991,0.05559106,131.34,131.31,9.86773173]
[1743164389190,0.05559106,131.34,131.33,7.6173]
[1743164392893,0.05559106,131.34,131.32,7.6175]
[1743164393787,0.05559106,131.34,131.31,0.05002823]
[1743164393989,0.05559106,131.34,131.33,7.6173]
[1743164397095,9.106e-05,131.34,131.33,38.6173]
[1743164397291,9.106e-05,131.34,131.33,40.7369]
[1743164402393,4.1184,131.43,131.33,40.7396]
[1743164402593,15.3313376,131.44,131.36,15.3313376]
[1743164402790,15.3313376,131.44,131.41,7.6124]
[1743164403400,4.1037,131.47,131.41,30.98]
[1743164403695,0.05815536,131.44,131.42,15.3313376]
[1743164403895,36.11914965,131.49,131.46,7.6095]
[1743164404504,25.53032341,131.49,131.46,7.6095]
[1743164404698,25.53032341,131.49,131.45,7.6101]
[1743164405100,0.05633699,131.48,131.46,0.05465563]
[1743164409305,0.05633699,131.48,131.46,15.38599323]
[1743164409702,0.05633699,131.48,131.46,22.99539323]
[1743164409904,0.05633699,131.48,131.46,15.38599323]
[1743164410202,0.05633699,131.48,131.47,7.6091]
[1743164410406,0.05633699,131.48,131.46,15.38599323]
[1743164411605,0.05633699,131.48,131.46,77.38599323]
[1743164411805,0.05633699,131.48,131.47,7.6091]
[1743164414507,25.53032341,131.49,131.48,7.6086]
[1743164414701,10.43518658,131.49,131.48,22.9399376]
[1743164415006,386.9357376,131.56,131.48,77.3313376]